[Event "GrandPrix_30.05"]
[Site "Chess.com"]
[Date "2020.05.30"]
[Round "3"]
[White "madamDD"]
[Black "WoodlandMagic"]
[Result "1-0"]
[WhiteElo "2447"]
[BlackElo "2101"]
[TimeControl "600+2"]
[EndTime "9:20:29 PDT"]
[Termination "madamDD won by resignation"]

1. e4 {[%clk 0:09:56.7]} 1... g6 {[%clk 0:09:54.8]} 2. d4 {[%clk 0:09:55.7]}
2... Bg7 {[%clk 0:09:55.9]} 3. Nc3 {[%clk 0:09:54.7]} 3... a6 {[%clk 0:09:56.3]}
4. f4 {[%clk 0:09:49.3]} 4... b5 {[%clk 0:09:56]} 5. Nf3 {[%clk 0:09:47.4]} 5...
Bb7 {[%clk 0:09:54]} 6. Bd3 {[%clk 0:09:46.7]} 6... d6 {[%clk 0:09:53.6]} 7. O-O
{[%clk 0:08:51.7]} 7... Nd7 {[%clk 0:09:46.8]} 8. e5 {[%clk 0:08:35.6]} 8... Nh6
{[%clk 0:09:43]} 9. Be4 {[%clk 0:08:22.2]} 9... Bxe4 {[%clk 0:09:28.1]} 10. Nxe4
{[%clk 0:08:24.1]} 10... d5 {[%clk 0:08:48.3]} 11. Nf2 {[%clk 0:07:35.7]} 11...
e6 {[%clk 0:08:30.4]} 12. a4 {[%clk 0:07:28.8]} 12... Nf5 {[%clk 0:08:12.3]} 13.
Qd3 {[%clk 0:07:06]} 13... b4 {[%clk 0:07:22.6]} 14. a5 {[%clk 0:06:45.6]} 14...
h5 {[%clk 0:05:59.7]} 15. Bd2 {[%clk 0:06:27.5]} 15... Bf8 {[%clk 0:05:46.2]}
16. c4 {[%clk 0:05:30.5]} 16... bxc3 {[%clk 0:05:30.4]} 17. bxc3 {[%clk
0:05:00.6]} 17... c5 {[%clk 0:04:36.9]} 18. c4 {[%clk 0:05:01]} 18... cxd4
{[%clk 0:04:08]} 19. Nxd4 {[%clk 0:04:22.3]} 19... Nc5 {[%clk 0:03:34.6]} 20.
Qc3 {[%clk 0:04:20.7]} 20... Nxd4 {[%clk 0:03:23]} 21. Qxd4 {[%clk 0:04:19.9]}
21... Nb3 {[%clk 0:03:23.7]} 22. Qc3 {[%clk 0:03:37.3]} 22... Nxa1 {[%clk
0:03:23.3]} 23. Rxa1 {[%clk 0:03:37.3]} 23... Bc5 {[%clk 0:03:17.2]} 24. cxd5
{[%clk 0:03:07.1]} 24... Qxd5 {[%clk 0:03:15.7]} 25. Be3 {[%clk 0:03:07]} 25...
Bxe3 {[%clk 0:02:02.7]} 26. Qxe3 {[%clk 0:03:08.9]} 26... O-O-O {[%clk
0:01:35.1]} 27. Qa7 {[%clk 0:02:35.7]} 27... Qc6 {[%clk 0:00:28]} 28. Rb1 {[%clk
0:02:32.8]} 1-0

[Event "GrandPrix_30.05"]
[Site "Chess.com"]
[Date "2020.05.30"]
[Round "3"]
[White "jncool68"]
[Black "LazovT"]
[Result "0-1"]
[WhiteElo "2279"]
[BlackElo "2224"]
[TimeControl "600+2"]
[EndTime "9:20:38 PDT"]
[Termination "LazovT won by resignation"]

1. e4 {[%clk 0:10:01.9]} 1... c5 {[%clk 0:09:11.2]} 2. Nf3 {[%clk 0:10:00]} 2...
d6 {[%clk 0:09:10.8]} 3. d4 {[%clk 0:09:58.7]} 3... Nf6 {[%clk 0:09:11.5]} 4.
Nc3 {[%clk 0:09:58.6]} 4... cxd4 {[%clk 0:09:12.3]} 5. Nxd4 {[%clk 0:09:59.4]}
5... a6 {[%clk 0:09:13.8]} 6. Be2 {[%clk 0:09:59.2]} 6... e5 {[%clk 0:09:13.3]}
7. Nb3 {[%clk 0:09:58.8]} 7... Be6 {[%clk 0:09:14.4]} 8. O-O {[%clk 0:09:58]}
8... Nbd7 {[%clk 0:09:15.6]} 9. Re1 {[%clk 0:09:54.1]} 9... Be7 {[%clk
0:09:04.2]} 10. Bf3 {[%clk 0:09:53]} 10... O-O {[%clk 0:09:01.7]} 11. a4 {[%clk
0:09:53.1]} 11... Qb8 {[%clk 0:09:00]} 12. a5 {[%clk 0:09:35.8]} 12... Rc8
{[%clk 0:08:56.2]} 13. Nd5 {[%clk 0:09:36]} 13... Bxd5 {[%clk 0:08:07.4]} 14.
exd5 {[%clk 0:09:34.4]} 14... Bd8 {[%clk 0:08:03.7]} 15. c3 {[%clk 0:09:27]}
15... b5 {[%clk 0:08:03.1]} 16. axb6 {[%clk 0:09:25.4]} 16... Bxb6 {[%clk
0:08:01.2]} 17. Na5 {[%clk 0:09:25.4]} 17... Bxa5 {[%clk 0:07:28.1]} 18. Rxa5
{[%clk 0:09:25.2]} 18... Qb6 {[%clk 0:07:15]} 19. Ra4 {[%clk 0:09:15]} 19... a5
{[%clk 0:07:04.6]} 20. g4 {[%clk 0:08:47.5]} 20... Nc5 {[%clk 0:06:49.8]} 21.
Ra3 {[%clk 0:08:43.4]} 21... Re8 {[%clk 0:06:34.7]} 22. g5 {[%clk 0:08:42.8]}
22... Nfd7 {[%clk 0:06:30.9]} 23. Qc2 {[%clk 0:08:24.9]} 23... Qb7 {[%clk
0:06:13.4]} 24. c4 {[%clk 0:08:13.5]} 24... a4 {[%clk 0:05:51.8]} 25. Bg2 {[%clk
0:08:08.2]} 25... Rab8 {[%clk 0:05:48.7]} 26. h4 {[%clk 0:07:45.8]} 26... Qb4
{[%clk 0:05:17.1]} 27. Re2 {[%clk 0:07:40.6]} 27... Nb3 {[%clk 0:05:05.3]} 28.
Be3 {[%clk 0:07:38.2]} 28... Ndc5 {[%clk 0:05:06.2]} 29. h5 {[%clk 0:07:32.4]}
29... Nd4 {[%clk 0:05:05.8]} 30. Bxd4 {[%clk 0:07:32.1]} 30... exd4 {[%clk
0:05:07.7]} 31. Rxe8+ {[%clk 0:07:19.1]} 31... Rxe8 {[%clk 0:05:09.6]} 32. Bf1
{[%clk 0:07:15]} 32... Qe1 {[%clk 0:05:02.2]} 33. Kg2 {[%clk 0:06:52.7]} 33...
Re5 {[%clk 0:03:47.9]} 34. Rg3 {[%clk 0:06:51.7]} 34... Qe4+ {[%clk 0:03:30.9]}
35. Qxe4 {[%clk 0:06:51.2]} 35... Nxe4 {[%clk 0:03:32.8]} 36. Ra3 {[%clk
0:06:50]} 36... Rxg5+ {[%clk 0:03:32.4]} 37. Kf3 {[%clk 0:06:49.6]} 37... Nc5
{[%clk 0:03:33.5]} 38. b3 {[%clk 0:06:50.7]} 38... Nxb3 {[%clk 0:03:11.8]} 39.
Rxa4 {[%clk 0:06:48.8]} 39... f5 {[%clk 0:03:12.7]} 40. Ra6 {[%clk 0:06:38.3]}
40... Rxh5 {[%clk 0:03:06.3]} 41. Rxd6 {[%clk 0:06:36.6]} 41... Nd2+ {[%clk
0:03:02.3]} 42. Ke2 {[%clk 0:06:37.3]} 42... Nxc4 {[%clk 0:02:55.4]} 43. Rc6
{[%clk 0:06:32.1]} 43... Ne5 {[%clk 0:02:51.4]} 44. Rc7 {[%clk 0:06:32.6]} 44...
Rh1 {[%clk 0:01:37.9]} 45. Bg2 {[%clk 0:06:19.7]} 45... Rg1 {[%clk 0:01:33.9]}
46. Bh3 {[%clk 0:05:57.3]} 46... g6 {[%clk 0:01:16.3]} 47. f4 {[%clk 0:05:53]}
47... Nf7 {[%clk 0:01:17]} 48. Kf2 {[%clk 0:05:45.8]} 48... Ra1 {[%clk
0:01:08.2]} 49. Bf1 {[%clk 0:05:44]} 49... Ra2+ {[%clk 0:01:06.5]} 50. Ke1
{[%clk 0:05:43.3]} 50... Nd6 {[%clk 0:01:01.3]} 51. Rc6 {[%clk 0:05:42.1]} 51...
Ne4 {[%clk 0:00:56.9]} 52. Bc4 {[%clk 0:05:42.6]} 52... Ra1+ {[%clk 0:00:52.5]}
53. Ke2 {[%clk 0:05:43.3]} 53... Kf8 {[%clk 0:00:37.7]} 54. d6 {[%clk
0:05:43.3]} 54... Ra8 {[%clk 0:00:21.5]} 55. Be6 {[%clk 0:05:39.4]} 55... Rd8
{[%clk 0:00:22]} 56. Kd3 {[%clk 0:05:10.4]} 56... Rxd6 {[%clk 0:00:20.2]} 57.
Rc8+ {[%clk 0:05:10.5]} 57... Kg7 {[%clk 0:00:20.8]} 58. Rc7+ {[%clk 0:05:09.8]}
58... Kh6 {[%clk 0:00:22]} 59. Bg8 {[%clk 0:05:10.4]} 59... Nf6 {[%clk
0:00:23.2]} 60. Bf7 {[%clk 0:05:09.3]} 60... Kh5 {[%clk 0:00:23.4]} 61. Rc1
{[%clk 0:05:06.7]} 61... Kg4 {[%clk 0:00:24.3]} 62. Rf1 {[%clk 0:05:06.9]} 62...
Kg3 {[%clk 0:00:22]} 63. Bb3 {[%clk 0:05:06.1]} 63... Ne4 {[%clk 0:00:21.5]} 64.
Bd1 {[%clk 0:05:05.7]} 64... Nf2+ {[%clk 0:00:22.4]} 0-1

[Event "GrandPrix_30.05"]
[Site "Chess.com"]
[Date "2020.05.30"]
[Round "3"]
[White "DenisQ"]
[Black "ZefirKa"]
[Result "0-1"]
[WhiteElo "2197"]
[BlackElo "2105"]
[TimeControl "600+2"]
[EndTime "9:20:38 PDT"]
[Termination "ZefirKa won by resignation"]

1. c4 {[%clk 0:09:59.3]} 1... e5 {[%clk 0:09:59.8]} 2. Nc3 {[%clk 0:09:59]} 2...
d6 {[%clk 0:10:00]} 3. g3 {[%clk 0:09:58.3]} 3... f5 {[%clk 0:10:00.9]} 4. Bg2
{[%clk 0:09:58.1]} 4... Nf6 {[%clk 0:10:01.9]} 5. Nf3 {[%clk 0:09:58.2]} 5...
Be7 {[%clk 0:10:02.9]} 6. O-O {[%clk 0:09:58.1]} 6... O-O {[%clk 0:10:03.9]} 7.
d3 {[%clk 0:09:57.5]} 7... Qe8 {[%clk 0:10:02.1]} 8. c5 {[%clk 0:09:38.1]} 8...
Nc6 {[%clk 0:09:50.5]} 9. b4 {[%clk 0:09:10.8]} 9... Qh5 {[%clk 0:06:49]} 10. b5
{[%clk 0:08:46.4]} 10... Nd8 {[%clk 0:06:43.2]} 11. cxd6 {[%clk 0:08:42.9]}
11... Bxd6 {[%clk 0:06:38.1]} 12. Ba3 {[%clk 0:08:23.6]} 12... f4 {[%clk
0:06:32.3]} 13. Bxd6 {[%clk 0:07:24.3]} 13... cxd6 {[%clk 0:06:34.2]} 14. Qb3+
{[%clk 0:07:06.5]} 14... Be6 {[%clk 0:06:31.3]} 15. Qb4 {[%clk 0:07:07.2]} 15...
fxg3 {[%clk 0:06:02.3]} 16. fxg3 {[%clk 0:06:18.2]} 16... Nf7 {[%clk 0:05:57.2]}
17. Ne4 {[%clk 0:05:15.5]} 17... Nxe4 {[%clk 0:05:33.1]} 18. Qxe4 {[%clk
0:05:14.4]} 18... d5 {[%clk 0:05:27.9]} 19. Qe3 {[%clk 0:04:59.6]} 19... b6
{[%clk 0:04:57.3]} 20. Nd4 {[%clk 0:04:24.6]} 20... Bh3 {[%clk 0:04:29.2]} 21.
Nc6 {[%clk 0:03:54.3]} 21... Bxg2 {[%clk 0:03:31.8]} 22. Kxg2 {[%clk 0:03:52.7]}
22... Rae8 {[%clk 0:03:20.2]} 23. Qf3 {[%clk 0:03:25.5]} 23... Qxf3+ {[%clk
0:02:51.7]} 24. exf3 {[%clk 0:03:08.5]} 24... Nd6 {[%clk 0:02:48.6]} 25. a4
{[%clk 0:03:06.3]} 25... Rf7 {[%clk 0:02:45.6]} 26. Rae1 {[%clk 0:02:58.6]}
26... Nf5 {[%clk 0:02:46.4]} 27. Nxe5 {[%clk 0:02:31.2]} 27... Rfe7 {[%clk
0:02:47.4]} 28. f4 {[%clk 0:02:27.8]} 28... d4 {[%clk 0:02:48.5]} 29. Kf3 {[%clk
0:02:19.3]} 29... Ne3 {[%clk 0:02:24]} 30. Rf2 {[%clk 0:02:18.4]} 30... g5
{[%clk 0:02:02.6]} 31. Nc6 {[%clk 0:02:16]} 31... g4+ {[%clk 0:02:03]} 32. Ke2
{[%clk 0:02:13.9]} 32... Nc2+ {[%clk 0:01:54.7]} 33. Nxe7+ {[%clk 0:01:24.1]}
33... Rxe7+ {[%clk 0:01:56.6]} 34. Kd1 {[%clk 0:01:25]} 34... Nxe1 {[%clk
0:01:56]} 0-1

[Event "GrandPrix_30.05"]
[Site "Chess.com"]
[Date "2020.05.30"]
[Round "3"]
[White "SacrificeGod"]
[Black "Khvicha_Supatashvili"]
[Result "0-1"]
[WhiteElo "2243"]
[BlackElo "2174"]
[TimeControl "600+2"]
[EndTime "9:20:44 PDT"]
[Termination "Khvicha_Supatashvili won by resignation"]

1. e4 {[%clk 0:10:00.5]} 1... c5 {[%clk 0:09:52.8]} 2. Nc3 {[%clk 0:09:59.7]}
2... Nc6 {[%clk 0:09:52.8]} 3. g3 {[%clk 0:10:00.8]} 3... e6 {[%clk 0:09:53]} 4.
Bg2 {[%clk 0:10:02]} 4... Nf6 {[%clk 0:09:54.2]} 5. d3 {[%clk 0:10:03.2]} 5...
d5 {[%clk 0:09:55.3]} 6. exd5 {[%clk 0:10:04.5]} 6... exd5 {[%clk 0:09:56.6]} 7.
Bg5 {[%clk 0:10:05.3]} 7... Be7 {[%clk 0:09:51.5]} 8. Nge2 {[%clk 0:10:03.5]}
8... d4 {[%clk 0:09:49.5]} 9. Bxf6 {[%clk 0:10:01.3]} 9... Bxf6 {[%clk
0:09:49.8]} 10. Nd5 {[%clk 0:10:02.2]} 10... O-O {[%clk 0:09:48.1]} 11. O-O
{[%clk 0:10:02.1]} 11... Re8 {[%clk 0:09:47.1]} 12. Nef4 {[%clk 0:10:01.9]}
12... g6 {[%clk 0:09:43.8]} 13. Qd2 {[%clk 0:09:36.9]} 13... Ne5 {[%clk
0:09:31.9]} 14. h3 {[%clk 0:09:07.9]} 14... Bg7 {[%clk 0:09:29.6]} 15. Rfe1
{[%clk 0:09:03.6]} 15... Bd7 {[%clk 0:09:06]} 16. c4 {[%clk 0:08:32.2]} 16...
dxc3 {[%clk 0:08:55.3]} 17. bxc3 {[%clk 0:08:32.6]} 17... Qa5 {[%clk 0:08:10.5]}
18. Qc2 {[%clk 0:07:49.1]} 18... Ba4 {[%clk 0:08:03.9]} 19. Qc1 {[%clk
0:07:25.3]} 19... Bc6 {[%clk 0:07:42.4]} 20. c4 {[%clk 0:07:02.5]} 20... Rad8
{[%clk 0:07:30.9]} 21. h4 {[%clk 0:06:27.4]} 21... h6 {[%clk 0:07:21.2]} 22. Re2
{[%clk 0:05:15.2]} 22... Kf8 {[%clk 0:07:06.6]} 23. Qe1 {[%clk 0:03:14.9]} 23...
Qxe1+ {[%clk 0:07:02.3]} 24. Raxe1 {[%clk 0:03:14.4]} 24... g5 {[%clk
0:06:54.4]} 25. hxg5 {[%clk 0:02:58.1]} 25... hxg5 {[%clk 0:06:54]} 26. Nh3
{[%clk 0:02:35.1]} 26... Nxd3 {[%clk 0:06:50]} 27. Rxe8+ {[%clk 0:02:34.3]}
27... Bxe8 {[%clk 0:06:47.6]} 28. Re3 {[%clk 0:01:18.4]} 28... Nb2 {[%clk
0:05:36.3]} 29. Nxg5 {[%clk 0:01:12.7]} 29... Bd4 {[%clk 0:05:13.3]} 30. Re7
{[%clk 0:00:21.7]} 30... Nd3 {[%clk 0:04:47.3]} 31. Rxb7 {[%clk 0:00:16.3]}
31... Nxf2 {[%clk 0:04:47.4]} 32. Kh2 {[%clk 0:00:12.7]} 32... Bd7 {[%clk
0:04:36.2]} 33. Bf3 {[%clk 0:00:05.9]} 33... Nd3 {[%clk 0:03:54.8]} 34. Bg4
{[%clk 0:00:03.6]} 34... Ne5 {[%clk 0:03:47.9]} 35. Bxd7 {[%clk 0:00:04.9]}
35... Rxd7 {[%clk 0:03:44.7]} 36. Rb8+ {[%clk 0:00:06]} 36... Kg7 {[%clk
0:03:45.4]} 37. Nf4 {[%clk 0:00:02.8]} 37... Ng4+ {[%clk 0:03:35.9]} 38. Kh3
{[%clk 0:00:03.5]} 38... Nf6 {[%clk 0:03:37]} 39. Kh4 {[%clk 0:00:04.2]} 39...
Be5 {[%clk 0:03:32.9]} 40. Nf3 {[%clk 0:00:04.6]} 40... Bxb8 {[%clk 0:03:32.9]}
0-1

[Event "GrandPrix_30.05"]
[Site "Chess.com"]
[Date "2020.05.30"]
[Round "3"]
[White "OhanyanEminChess"]
[Black "Jan1401"]
[Result "0-1"]
[WhiteElo "2090"]
[BlackElo "2310"]
[TimeControl "600+2"]
[EndTime "9:20:51 PDT"]
[Termination "Jan1401 won by resignation"]

1. e4 {[%clk 0:09:57.1]} 1... e6 {[%clk 0:10:01.1]} 2. d4 {[%clk 0:09:55.5]}
2... d5 {[%clk 0:10:02.3]} 3. Nc3 {[%clk 0:09:52]} 3... Bb4 {[%clk 0:10:02.1]}
4. e5 {[%clk 0:09:38]} 4... c5 {[%clk 0:09:53.1]} 5. a3 {[%clk 0:09:37.2]} 5...
Bxc3+ {[%clk 0:09:54.1]} 6. bxc3 {[%clk 0:09:38.1]} 6... Ne7 {[%clk 0:09:55.6]}
7. Qg4 {[%clk 0:09:38.5]} 7... Qc7 {[%clk 0:09:52.3]} 8. Qxg7 {[%clk 0:09:38.3]}
8... Rg8 {[%clk 0:09:52.8]} 9. Qxh7 {[%clk 0:09:39.7]} 9... cxd4 {[%clk
0:09:53.9]} 10. Ne2 {[%clk 0:09:41.1]} 10... dxc3 {[%clk 0:09:49.9]} 11. f4
{[%clk 0:09:41.5]} 11... Nbc6 {[%clk 0:09:50]} 12. Qd3 {[%clk 0:09:42.9]} 12...
b6 {[%clk 0:09:50.1]} 13. Nxc3 {[%clk 0:09:31.4]} 13... Nf5 {[%clk 0:09:48.4]}
14. g4 {[%clk 0:08:05]} 14... Rxg4 {[%clk 0:09:47.7]} 15. Bh3 {[%clk 0:08:04.5]}
15... Nxe5 {[%clk 0:09:48.3]} 16. fxe5 {[%clk 0:06:55.9]} 16... Qxe5+ {[%clk
0:09:47.2]} 17. Kf2 {[%clk 0:04:53.8]} 17... Rc4 {[%clk 0:08:50.8]} 18. Bd2
{[%clk 0:03:24.1]} 18... Nd6 {[%clk 0:07:11.1]} 19. Rae1 {[%clk 0:02:40.5]}
19... Qf6+ {[%clk 0:06:56.2]} 20. Qf3 {[%clk 0:02:08.2]} 20... Qh4+ {[%clk
0:06:50]} 21. Qg3 {[%clk 0:01:50.3]} 21... Qd4+ {[%clk 0:06:19.6]} 22. Qe3
{[%clk 0:01:43.6]} 22... Qxe3+ {[%clk 0:06:11.4]} 23. Rxe3 {[%clk 0:01:41.8]}
23... d4 {[%clk 0:06:11.4]} 24. Rd3 {[%clk 0:01:05.2]} 24... dxc3 {[%clk
0:05:21.2]} 25. Rxd6 {[%clk 0:01:05]} 25... cxd2 {[%clk 0:05:19.7]} 26. Bg2
{[%clk 0:00:50]} 26... Rxc2 {[%clk 0:05:06.9]} 27. Rd1 {[%clk 0:00:44.2]} 27...
Rb8 {[%clk 0:05:03.8]} 28. h4 {[%clk 0:00:44.8]} 28... Ke7 {[%clk 0:05:03.8]}
29. R6xd2 {[%clk 0:00:44.2]} 29... Rxd2+ {[%clk 0:04:58]} 30. Rxd2 {[%clk
0:00:46.1]} 30... Bb7 {[%clk 0:04:48.7]} 31. Bf1 {[%clk 0:00:46.6]} 31... Rh8
{[%clk 0:04:36.3]} 32. Bb5 {[%clk 0:00:40.2]} 32... Bd5 {[%clk 0:04:33.5]} 33.
Kg3 {[%clk 0:00:40]} 33... Rg8+ {[%clk 0:04:23.9]} 34. Kh3 {[%clk 0:00:37.3]}
34... f5 {[%clk 0:04:18.5]} 35. h5 {[%clk 0:00:21.9]} 35... Kf6 {[%clk
0:04:10.3]} 36. Rd1 {[%clk 0:00:22.7]} 36... Rg5 {[%clk 0:03:56.8]} 37. Be2
{[%clk 0:00:20.3]} 37... f4 {[%clk 0:03:45.3]} 38. Rf1 {[%clk 0:00:20.3]} 38...
e5 {[%clk 0:03:46]} 39. Kh4 {[%clk 0:00:16.4]} 39... Rg2 {[%clk 0:03:39.4]} 40.
Bg4 {[%clk 0:00:03.8]} 40... Rh2+ {[%clk 0:03:36.8]} 41. Bh3 {[%clk 0:00:05.2]}
41... Be6 {[%clk 0:03:34]} 42. Rf3 {[%clk 0:00:05.1]} 42... Rxh3+ {[%clk
0:03:33.4]} 43. Rxh3 {[%clk 0:00:07]} 43... Bxh3 {[%clk 0:03:34.2]} 44. Kxh3
{[%clk 0:00:08.9]} 44... Kg5 {[%clk 0:03:35.5]} 0-1

[Event "GrandPrix_30.05"]
[Site "Chess.com"]
[Date "2020.05.30"]
[Round "3"]
[White "KuzubovYuriy"]
[Black "TimofeevAr"]
[Result "0-1"]
[WhiteElo "2411"]
[BlackElo "2681"]
[TimeControl "600+2"]
[EndTime "9:20:53 PDT"]
[Termination "TimofeevAr won by resignation"]

1. d4 {[%clk 0:10:01.9]} 1... Nf6 {[%clk 0:10:00]} 2. c4 {[%clk 0:10:02.5]} 2...
g6 {[%clk 0:10:00.8]} 3. Nc3 {[%clk 0:10:02.9]} 3... d5 {[%clk 0:10:01.4]} 4.
cxd5 {[%clk 0:10:02.3]} 4... Nxd5 {[%clk 0:10:01.8]} 5. Bd2 {[%clk 0:10:03.9]}
5... Bg7 {[%clk 0:10:02]} 6. e4 {[%clk 0:10:04.8]} 6... Nb6 {[%clk 0:10:02.9]}
7. Be3 {[%clk 0:10:03.6]} 7... O-O {[%clk 0:09:59.7]} 8. Bb5 {[%clk 0:10:02.9]}
8... c6 {[%clk 0:09:39.3]} 9. Be2 {[%clk 0:10:03.2]} 9... e5 {[%clk 0:09:40]}
10. dxe5 {[%clk 0:09:58.9]} 10... Bxe5 {[%clk 0:09:36.4]} 11. Qc2 {[%clk
0:09:43.5]} 11... Be6 {[%clk 0:09:28.7]} 12. Nf3 {[%clk 0:09:20.3]} 12... Bg7
{[%clk 0:09:27.6]} 13. Rd1 {[%clk 0:09:10.6]} 13... Qe7 {[%clk 0:09:26.2]} 14.
O-O {[%clk 0:09:01.9]} 14... N8d7 {[%clk 0:09:25.1]} 15. Bf4 {[%clk 0:08:11.6]}
15... Rfd8 {[%clk 0:08:45.4]} 16. Bc7 {[%clk 0:08:06.7]} 16... Re8 {[%clk
0:08:32.3]} 17. Bd6 {[%clk 0:08:04.5]} 17... Qd8 {[%clk 0:08:32.8]} 18. Rfe1
{[%clk 0:07:29.9]} 18... Nc8 {[%clk 0:08:22.6]} 19. Bf4 {[%clk 0:07:18]} 19...
Ncb6 {[%clk 0:08:15.9]} 20. h3 {[%clk 0:05:54.4]} 20... a5 {[%clk 0:07:34.8]}
21. Qc1 {[%clk 0:03:39.4]} 21... a4 {[%clk 0:07:05.7]} 22. Nd4 {[%clk
0:02:55.4]} 22... Bc4 {[%clk 0:06:47.9]} 23. Bg4 {[%clk 0:02:51]} 23... Qe7
{[%clk 0:06:29.1]} 24. Nf3 {[%clk 0:02:07]} 24... Ne5 {[%clk 0:06:19]} 25. Nxe5
{[%clk 0:02:02.3]} 25... Bxe5 {[%clk 0:06:19.7]} 26. Bxe5 {[%clk 0:01:59.6]}
26... Qxe5 {[%clk 0:06:20.4]} 27. Qe3 {[%clk 0:01:58.6]} 27... Qa5 {[%clk
0:06:08.9]} 28. e5 {[%clk 0:00:53.3]} 28... Nd5 {[%clk 0:06:05.2]} 29. Nxd5
{[%clk 0:00:50.9]} 29... Bxd5 {[%clk 0:06:05.8]} 30. a3 {[%clk 0:00:49.3]} 30...
Qb5 {[%clk 0:05:59.7]} 31. Qc3 {[%clk 0:00:46.2]} 31... Rad8 {[%clk 0:05:41.5]}
32. h4 {[%clk 0:00:39.7]} 32... Qb3 {[%clk 0:05:37.9]} 33. Rd4 {[%clk
0:00:34.4]} 33... Qxc3 {[%clk 0:05:34.1]} 34. bxc3 {[%clk 0:00:35.2]} 34... Bb3
{[%clk 0:05:35.7]} 35. Re2 {[%clk 0:00:18.2]} 35... Rxd4 {[%clk 0:05:09]} 36.
cxd4 {[%clk 0:00:19]} 36... Bd1 {[%clk 0:05:10.2]} 37. Re4 {[%clk 0:00:17.5]}
37... f5 {[%clk 0:05:11.3]} 38. Bxd1 {[%clk 0:00:14.9]} 38... fxe4 {[%clk
0:05:12.5]} 39. Bxa4 {[%clk 0:00:14.6]} 39... Rd8 {[%clk 0:05:13]} 40. d5 {[%clk
0:00:10.9]} 40... cxd5 {[%clk 0:05:11]} 41. f4 {[%clk 0:00:11]} 41... exf3
{[%clk 0:05:10.6]} 42. gxf3 {[%clk 0:00:12.1]} 42... Kf7 {[%clk 0:05:11.4]} 43.
Kf2 {[%clk 0:00:12.7]} 43... Ke6 {[%clk 0:05:12.5]} 44. f4 {[%clk 0:00:14]}
44... Ra8 {[%clk 0:05:08.9]} 45. Bd1 {[%clk 0:00:14.9]} 45... Rxa3 {[%clk
0:05:08.6]} 46. Bg4+ {[%clk 0:00:16.2]} 46... Ke7 {[%clk 0:05:09.8]} 47. Bf3
{[%clk 0:00:17]} 47... Ra5 {[%clk 0:04:40.2]} 48. Ke3 {[%clk 0:00:15.8]} 48...
b6 {[%clk 0:04:41.4]} 49. h5 {[%clk 0:00:16.7]} 49... Ra3+ {[%clk 0:04:38.5]}
50. Ke2 {[%clk 0:00:17.5]} 50... d4 {[%clk 0:04:39.3]} 51. hxg6 {[%clk
0:00:17.3]} 51... hxg6 {[%clk 0:04:39.7]} 52. Bd5 {[%clk 0:00:17.8]} 52... b5
{[%clk 0:04:37.2]} 53. Kd2 {[%clk 0:00:18.8]} 53... Re3 {[%clk 0:04:28.7]} 54.
Ba2 {[%clk 0:00:17.3]} 54... Rf3 {[%clk 0:04:22.7]} 55. Bb1 {[%clk 0:00:17.7]}
55... Rxf4 {[%clk 0:04:23.8]} 56. Bxg6 {[%clk 0:00:17.7]} 56... Ke6 {[%clk
0:04:24.4]} 57. Bd3 {[%clk 0:00:17.7]} 57... b4 {[%clk 0:04:25.5]} 0-1

[Event "GrandPrix_30.05"]
[Site "Chess.com"]
[Date "2020.05.30"]
[Round "3"]
[White "Sanan_Sjugirov"]
[Black "Herracek"]
[Result "1-0"]
[WhiteElo "2674"]
[BlackElo "2398"]
[TimeControl "600+2"]
[EndTime "9:21:02 PDT"]
[Termination "Sanan_Sjugirov won by resignation"]

1. e4 {[%clk 0:10:01.9]} 1... c5 {[%clk 0:10:00.6]} 2. Nf3 {[%clk 0:10:02.4]}
2... Nc6 {[%clk 0:10:02.1]} 3. Bb5 {[%clk 0:10:03]} 3... g6 {[%clk 0:10:03.4]}
4. O-O {[%clk 0:10:01.7]} 4... Bg7 {[%clk 0:10:04.6]} 5. Re1 {[%clk 0:09:56.6]}
5... e5 {[%clk 0:10:04.9]} 6. Bxc6 {[%clk 0:09:54.8]} 6... dxc6 {[%clk 0:10:04]}
7. a4 {[%clk 0:09:48.7]} 7... Nh6 {[%clk 0:08:58.4]} 8. d3 {[%clk 0:09:35]} 8...
f6 {[%clk 0:08:57.1]} 9. Na3 {[%clk 0:08:56.1]} 9... Be6 {[%clk 0:08:51.1]} 10.
Be3 {[%clk 0:08:32.8]} 10... b6 {[%clk 0:08:42.5]} 11. a5 {[%clk 0:08:32.2]}
11... O-O {[%clk 0:08:00.5]} 12. h3 {[%clk 0:08:22]} 12... Nf7 {[%clk
0:07:55.3]} 13. Qd2 {[%clk 0:07:56.1]} 13... Qd6 {[%clk 0:07:38.7]} 14. Qc3
{[%clk 0:07:34.5]} 14... f5 {[%clk 0:07:15.3]} 15. Nc4 {[%clk 0:06:44.8]} 15...
Bxc4 {[%clk 0:05:38.1]} 16. Qxc4 {[%clk 0:06:40.9]} 16... f4 {[%clk 0:05:39.2]}
17. Bd2 {[%clk 0:06:38.8]} 17... b5 {[%clk 0:05:35.7]} 18. Qb3 {[%clk
0:05:25.3]} 18... Bf6 {[%clk 0:05:27.3]} 19. a6 {[%clk 0:05:06.7]} 19... g5
{[%clk 0:05:24.9]} 20. g4 {[%clk 0:03:08.3]} 20... h5 {[%clk 0:03:29.6]} 21. Kf1
{[%clk 0:03:03.2]} 21... Kg7 {[%clk 0:03:06.9]} 22. Ke2 {[%clk 0:03:02.6]} 22...
hxg4 {[%clk 0:03:06.2]} 23. hxg4 {[%clk 0:03:04.5]} 23... Rh8 {[%clk 0:03:07.4]}
24. Rh1 {[%clk 0:02:31.7]} 24... Qd7 {[%clk 0:02:54.8]} 25. Rxh8 {[%clk
0:02:30.7]} 25... Rxh8 {[%clk 0:02:44.9]} 26. Rg1 {[%clk 0:02:31.7]} 26... Rh3
{[%clk 0:02:36.4]} 27. Qc3 {[%clk 0:02:24]} 27... Qd6 {[%clk 0:02:33.3]} 28. b4
{[%clk 0:02:19.1]} 28... cxb4 {[%clk 0:01:56]} 29. Qxb4 {[%clk 0:02:21]} 29...
Qc7 {[%clk 0:01:51.1]} 30. Qc5 {[%clk 0:01:53.6]} 30... Be7 {[%clk 0:01:41.9]}
31. Qc3 {[%clk 0:01:54]} 31... c5 {[%clk 0:01:32.7]} 32. Qb3 {[%clk 0:01:47.5]}
32... Qc6 {[%clk 0:01:01.5]} 33. Qxf7+ {[%clk 0:01:45]} 1-0